[Event "Polgar Challenge 2021"]
[Site "Online"]
[Date "2021.04.04"]
[Round "7.9"]
[White "Keymer, Vincent"]
[Black "Khademalsharieh, Sarasadat"]
[Result "1/2-1/2"]
[ECO "D32"]
[WhiteElo "2591"]
[BlackElo "2494"]
[Annotator "ChessBase"]
[PlyCount "129"]
[EventDate "2021.04.08"]
[EventType "tourn"]
[EventCountry "NET"]
[SourceTitle "playchess.com"]
[Source "ChessBase"]
[SourceQuality "1"]
[TimeControl "600+5"]

1. Nf3 {[%emt 0:00:00]} d5 {[%emt 0:00:00]} 2. e3 {[%emt 0:00:00]} Nf6 {[%emt 0:00:00]} 3. c4 {[%emt 0:00:00]} e6 {[%emt 0:00:00]} 4. Nc3 {[%emt 0:00:00]} c5 {[%emt 0:00:02]} 5. cxd5 {[%emt 0:00:00]} exd5 {[%emt 0:00:02]} 6. d4 {[%emt 0:00:02]} Nc6 {[%emt 0:00:04]} 7. Bb5 {[%emt 0:00:01]} Bd6 {[%emt 0:00:13]} 8. dxc5 {[%emt 0:00:01]} Bxc5 {[%emt 0:00:02]} 9. O-O {[%emt 0:00:03]} O-O {[%emt 0:00:02]} 10. b3 {[%emt 0:00:08]} Bg4 {[%emt 0:00:10]} 11. Bb2 {[%emt 0:00:11]} a6 {[%emt 0:00:45]} 12. Bxc6 {[%emt 0:00:02]} bxc6 {[%emt 0:00:01]} 13. h3 {[%emt 0:00:13]} Bd7 {[%emt 0:00:48]} 14. Na4 {[%emt 0:00:36]} Bd6 {[%emt 0:00:01]} 15. Qd4 {[%emt 0:00:13]} Rb8 {[%emt 0:00:15]} 16. Nc5 {[%emt 0:00:36]} Re8 {[%emt 0:00:21]} 17. Rac1 {[%emt 0:00:33]} Rb5 {[%emt 0:00:50]} 18. Rfd1 {[%emt 0:02:08]} Bc8 {[%emt 0:00:33]} 19. Nd3 {[%emt 0:00:47]} Bd7 {[%emt 0:00:39]} 20. Nde5 {[%emt 0:01:08]} c5 {[%emt 0:01:01]} 21. Qd2 {[%emt 0:00:49]} Be6 {[%emt 0:01:23]} 22. Qc2 {[%emt 0:00:03]} Ne4 {[%emt 0:00:15]} 23. Nd3 {[%emt 0:00:35]} Qa5 {[%emt 0:00:45]} 24. a3 {[%emt 0:00:28]} Rc8 {[%emt 0:00:49]} 25. Nf4 {[%emt 0:00:38]} Bxf4 {[%emt 0:00:21]} 26. exf4 {[%emt 0:00:00]} Qb6 {[%emt 0:00:27]} 27. b4 {[%emt 0:00:23]} Qb7 {[%emt 0:00:33]} 28. Qe2 {[%emt 0:00:27]} a5 {[%emt 0:00:18]} 29. f5 {[%emt 0:00:24]} Bxf5 {[%emt 0:00:03]} 30. Rxd5 {[%emt 0:00:04]} Qxd5 {[%emt 0:00:22]} 31. Qxb5 {[%emt 0:00:02]} axb4 {[%emt 0:00:01]} 32. axb4 {[%emt 0:00:02]} Nd6 {[%emt 0:00:27]} 33. Rxc5 {[%emt 0:00:26]} Qd1+ {[%emt 0:00:12]} 34. Qf1 {[%emt 0:00:01]} Qb3 {[%emt 0:00:11]} 35. Be5 {[%emt 0:00:14]} Qxb4 {[%emt 0:00:12]} 36. Rd5 {[%emt 0:00:33]} Nc4 {[%emt 0:00:26]} 37. Bxg7 {[%emt 0:00:13]} Be4 {[%emt 0:00:24]} 38. Rg5 {[%emt 0:00:05]} Bg6 {[%emt 0:00:01]} 39. Bd4 {[%emt 0:00:31]} Nd2 {[%emt 0:00:01]} 40. Nxd2 {[%emt 0:00:01]} Qxd2 {[%emt 0:00:01]} 41. Be3 {[%emt 0:00:01]} Qd6 {[%emt 0:00:02]} 42. h4 {[%emt 0:00:05]} h6 {[%emt 0:00:03]} 43. Rg3 {[%emt 0:00:03]} Kh7 {[%emt 0:00:01]} 44. h5 {[%emt 0:00:21]} Bxh5 {[%emt 0:00:04]} 45. Rh3 {[%emt 0:00:01]} Qd1 {[%emt 0:00:25]} 46. Qxd1 {[%emt 0:00:19]} Bxd1 {[%emt 0:00:01]} 47. Rxh6+ {[%emt 0:00:00]} Kg7 {[%emt 0:00:01]} 48. Rd6 {[%emt 0:00:04]} Bb3 {[%emt 0:00:02]} 49. Bd4+ {[%emt 0:00:02]} Kh7 {[%emt 0:00:01]} 50. Rf6 {[%emt 0:00:14]} Be6 {[%emt 0:00:01]} 51. Rf4 {[%emt 0:00:03]} Rc4 {[%emt 0:00:10]} 52. f3 {[%emt 0:00:07]} Ra4 {[%emt 0:00:03]} 53. Kf2 {[%emt 0:00:06]} Kg6 {[%emt 0:00:02]} 54. Rf6+ {[%emt 0:00:08]} Kh7 {[%emt 0:00:01]} 55. Ke3 {[%emt 0:00:07]} Ra5 {[%emt 0:00:06]} 56. g4 {[%emt 0:00:03]} Ra3+ {[%emt 0:00:04]} 57. Ke4 {[%emt 0:00:04]} Ra2 {[%emt 0:00:05]} 58. g5 {[%emt 0:00:08]} Rh2 {[%emt 0:00:03]} 59. Ke5 {[%emt 0:00:09]} Rh5 {[%emt 0:00:04]} 60. f4 {[%emt 0:00:03]} Kg8 {[%emt 0:00:03]} 61. f5 {[%emt 0:00:09]} Rxg5 {[%emt 0:00:03]} 62. Kf4 {[%emt 0:00:01]} Rxf5+ {[%emt 0:00:02]} 63. Rxf5 {[%emt 0:00:01]} Bxf5 {[%emt 0:00:00]} 64. Kxf5 {[%emt 0:00:00]} f6 {[%emt 0:00:02]} 65. Kxf6 {[%emt 0:00:00]} 1/2-1/2

[Event "Polgar Challenge 2021"]
[Site "Online"]
[Date "2021.04.04"]
[Round "7.10"]
[White "Mendonca, Leon Luke"]
[Black "Abdumalik, Zhansaya"]
[Result "1/2-1/2"]
[ECO "D93"]
[WhiteElo "2549"]
[BlackElo "2472"]
[Annotator "ChessBase"]
[PlyCount "129"]
[EventDate "2021.04.08"]
[EventType "tourn"]
[EventCountry "NET"]
[SourceTitle "playchess.com"]
[Source "ChessBase"]
[SourceQuality "1"]
[TimeControl "600+5"]

1. d4 {[%emt 0:00:00]} Nf6 {[%emt 0:00:00]} 2. c4 {[%emt 0:00:00]} g6 {[%emt 0:00:00]} 3. Nc3 {[%emt 0:00:04]} d5 {[%emt 0:00:00]} 4. Bf4 {[%emt 0:00:06]} Bg7 {[%emt 0:00:00]} 5. e3 {[%emt 0:00:05]} c6 {[%emt 0:00:26]} 6. Nf3 {[%emt 0:00:39]} O-O {[%emt 0:00:06]} 7. Bd3 {[%emt 0:00:52]} Be6 {[%emt 0:00:22]} 8. c5 {[%emt 0:00:44]} Nh5 {[%emt 0:00:09]} 9. Be5 {[%emt 0:01:26]} f6 {[%emt 0:00:23]} 10. Bxb8 {[%emt 0:00:52]} Rxb8 {[%emt 0:00:12]} 11. O-O {[%emt 0:01:54]} f5 {[%emt 0:01:18]} 12. b4 {[%emt 0:01:33]} Nf6 {[%emt 0:00:51]} 13. Ne5 {[%emt 0:00:47]} Ne4 {[%emt 0:00:13]} 14. Ne2 {[%emt 0:00:11]} Qc7 {[%emt 0:00:38]} 15. f4 {[%emt 0:00:12]} b6 {[%emt 0:00:58]} 16. Qc2 {[%emt 0:00:29]} bxc5 {[%emt 0:01:06]} 17. bxc5 {[%emt 0:00:00]} Rb4 {[%emt 0:00:43]} 18. Rab1 {[%emt 0:00:29]} Rfb8 {[%emt 0:00:03]} 19. Rxb4 {[%emt 0:00:07]} Rxb4 {[%emt 0:00:01]} 20. Rb1 {[%emt 0:00:44]} Rxb1+ {[%emt 0:00:15]} 21. Qxb1 {[%emt 0:00:00]} Bxe5 {[%emt 0:00:01]} 22. fxe5 {[%emt 0:00:00]} Bc8 {[%emt 0:00:13]} 23. Qb4 {[%emt 0:00:08]} Kf7 {[%emt 0:00:37]} 24. g3 {[%emt 0:00:04]} Ng5 {[%emt 0:00:15]} 25. Kg2 {[%emt 0:00:04]} Qb7 {[%emt 0:00:07]} 26. a3 {[%emt 0:00:21]} Ne6 {[%emt 0:00:26]} 27. Nc1 {[%emt 0:00:06]} Qxb4 {[%emt 0:00:24]} 28. axb4 {[%emt 0:00:02]} Nc7 {[%emt 0:00:00]} 29. Kf3 {[%emt 0:00:12]} Bb7 {[%emt 0:01:05]} 30. Nb3 {[%emt 0:00:03]} Ba6 {[%emt 0:00:09]} 31. Ke2 {[%emt 0:00:09]} Ke8 {[%emt 0:00:03]} 32. Na5 {[%emt 0:00:05]} Bxd3+ {[%emt 0:00:13]} 33. Kxd3 {[%emt 0:00:00]} Kd7 {[%emt 0:00:00]} 34. Nb3 {[%emt 0:00:04]} g5 {[%emt 0:00:15]} 35. Nd2 {[%emt 0:00:04]} h6 {[%emt 0:00:12]} 36. Nf3 {[%emt 0:00:11]} Ne6 {[%emt 0:00:03]} 37. Ne1 {[%emt 0:00:07]} Nc7 {[%emt 0:00:05]} 38. Nf3 {[%emt 0:00:03]} Ne6 {[%emt 0:00:01]} 39. Nd2 {[%emt 0:00:05]} g4 {[%emt 0:00:06]} 40. Nb1 {[%emt 0:00:06]} Ng5 {[%emt 0:00:03]} 41. Nd2 {[%emt 0:00:03]} Kc7 {[%emt 0:00:05]} 42. Ke2 {[%emt 0:00:12]} Kb7 {[%emt 0:00:01]} 43. Nb1 {[%emt 0:00:02]} Ne4 {[%emt 0:00:09]} 44. Kd3 {[%emt 0:00:06]} h5 {[%emt 0:00:05]} 45. Na3 {[%emt 0:00:04]} Ka6 {[%emt 0:00:17]} 46. Ke2 {[%emt 0:00:08]} Ng5 {[%emt 0:00:04]} 47. Kf2 {[%emt 0:00:06]} Nf3 {[%emt 0:00:23]} 48. Kg2 {[%emt 0:00:06]} Nd2 {[%emt 0:00:04]} 49. Kf2 {[%emt 0:00:02]} Nc4 {[%emt 0:00:12]} 50. Nc2 {[%emt 0:00:02]} Kb5 {[%emt 0:00:02]} 51. Ke2 {[%emt 0:00:01]} Ka4 {[%emt 0:00:18]} 52. Kd3 {[%emt 0:00:02]} a6 {[%emt 0:00:02]} 53. Kc3 {[%emt 0:00:03]} e6 {[%emt 0:00:04]} 54. Kd3 {[%emt 0:00:13]} Kb3 {[%emt 0:00:02]} 55. Ne1 {[%emt 0:00:01]} Kxb4 {[%emt 0:00:03]} 56. Ng2 {[%emt 0:00:02]} Kb3 {[%emt 0:00:16]} 57. Nf4 {[%emt 0:00:03]} a5 {[%emt 0:00:00]} 58. Nxe6 {[%emt 0:00:01]} a4 {[%emt 0:00:01]} 59. Nf4 {[%emt 0:00:14]} Nb2+ {[%emt 0:00:16]} 60. Kd2 {[%emt 0:00:02]} a3 {[%emt 0:00:07]} 61. Ne2 {[%emt 0:00:03]} Nc4+ {[%emt 0:00:00]} 62. Kd3 {[%emt 0:00:02]} Nb2+ {[%emt 0:00:02]} 63. Kd2 {[%emt 0:00:01]} Nc4+ {[%emt 0:00:00]} 64. Kd3 {[%emt 0:00:11]} Nb2+ {[%emt 0:00:17]} 65. Kd2 {[%emt 0:00:01]} 1/2-1/2

[Event "Polgar Challenge 2021"]
[Site "Online"]
[Date "2021.04.04"]
[Round "8.1"]
[White "Zhu, Jiner"]
[Black "Abdumalik, Zhansaya"]
[Result "1-0"]
[ECO "C91"]
[WhiteElo "2459"]
[BlackElo "2472"]
[Annotator "ChessBase"]
[PlyCount "75"]
[EventDate "2021.04.08"]
[EventType "tourn"]
[EventCountry "NET"]
[SourceTitle "playchess.com"]
[Source "ChessBase"]
[SourceQuality "1"]
[TimeControl "600+5"]

1. e4 {[%emt 0:00:00]} e5 {[%emt 0:00:00]} 2. Nf3 {[%emt 0:00:00]} Nc6 {[%emt 0:00:00]} 3. Bb5 {[%emt 0:00:00]} a6 {[%emt 0:00:00]} 4. Ba4 {[%emt 0:00:00]} Nf6 {[%emt 0:00:00]} 5. O-O {[%emt 0:00:01]} Be7 {[%emt 0:00:00]} 6. Re1 {[%emt 0:00:06]} b5 {[%emt 0:00:00]} 7. Bb3 {[%emt 0:00:01]} O-O {[%emt 0:00:00]} 8. d4 {[%emt 0:00:01]} d6 {[%emt 0:00:06]} 9. c3 {[%emt 0:00:02]} Bg4 {[%emt 0:00:05]} 10. d5 {[%emt 0:00:03]} Na5 {[%emt 0:00:08]} 11. Bc2 {[%emt 0:00:01]} c5 {[%emt 0:00:20]} 12. h3 {[%emt 0:00:30]} Bd7 {[%emt 0:00:28]} 13. b3 {[%emt 0:00:18]} Re8 {[%emt 0:00:05]} 14. Be3 {[%emt 0:00:04]} Bf8 {[%emt 0:00:21]} 15. Nbd2 {[%emt 0:00:03]} g6 {[%emt 0:00:09]} 16. Nf1 {[%emt 0:00:06]} Nh5 {[%emt 0:00:02]} 17. Qd2 {[%emt 0:03:01]} Bg7 {[%emt 0:00:08]} 18. Ng3 {[%emt 0:00:25]} Nf4 {[%emt 0:01:11]} 19. Ne2 {[%emt 0:00:16]} Qf6 {[%emt 0:00:10]} 20. Nxf4 {[%emt 0:00:55]} exf4 {[%emt 0:00:06]} 21. Bxf4 {[%emt 0:00:00]} Qxc3 {[%emt 0:00:04]} 22. e5 {[%emt 0:01:08]} Qxd2 {[%emt 0:00:27]} 23. Bxd2 {[%emt 0:00:01]} Nb7 {[%emt 0:00:02]} 24. Bf4 {[%emt 0:00:01]} c4 {[%emt 0:01:22]} 25. Rad1 {[%emt 0:01:17]} a5 {[%emt 0:01:20]} 26. exd6 {[%emt 0:00:44]} cxb3 {[%emt 0:00:03]} 27. axb3 {[%emt 0:00:25]} Rac8 {[%emt 0:00:20]} 28. Bb1 {[%emt 0:00:21]} Nc5 {[%emt 0:00:31]} 29. Rxe8+ {[%emt 0:01:00]} Rxe8 {[%emt 0:00:28]} 30. Rc1 {[%emt 0:00:07]} Rc8 {[%emt 0:00:29]} 31. Nd2 {[%emt 0:00:18]} a4 {[%emt 0:00:09]} 32. bxa4 {[%emt 0:00:26]} Nxa4 {[%emt 0:00:16]} 33. Rc7 {[%emt 0:00:17]} Rxc7 {[%emt 0:00:01]} 34. dxc7 {[%emt 0:00:01]} Nc3 {[%emt 0:00:00]} 35. Bd3 {[%emt 0:00:04]} b4 {[%emt 0:00:29]} 36. d6 {[%emt 0:00:06]} Nd5 {[%emt 0:00:08]} 37. Bb5 {[%emt 0:00:14]} Be6 {[%emt 0:00:43]} 38. d7 {[%emt 0:00:07]} 1-0

[Event "Polgar Challenge 2021"]
[Site "Online"]
[Date "2021.04.04"]
[Round "8.2"]
[White "Khademalsharieh, Sarasadat"]
[Black "Mendonca, Leon Luke"]
[Result "0-1"]
[ECO "D12"]
[WhiteElo "2494"]
[BlackElo "2549"]
[Annotator "ChessBase"]
[PlyCount "100"]
[EventDate "2021.04.08"]
[EventType "tourn"]
[EventCountry "NET"]
[SourceTitle "playchess.com"]
[Source "ChessBase"]
[SourceQuality "1"]
[TimeControl "600+5"]

1. d4 {[%emt 0:00:00]} Nf6 {[%emt 0:00:00]} 2. c4 {[%emt 0:00:00]} c6 {[%emt 0:00:00]} 3. Nf3 {[%emt 0:00:09]} d5 {[%emt 0:00:04]} 4. e3 {[%emt 0:00:01]} Bf5 {[%emt 0:00:04]} 5. Nc3 {[%emt 0:00:03]} e6 {[%emt 0:00:02]} 6. Nh4 {[%emt 0:00:01]} Be4 {[%emt 0:00:02]} 7. f3 {[%emt 0:00:05]} Bg6 {[%emt 0:00:02]} 8. Qb3 {[%emt 0:00:01]} Qc7 {[%emt 0:00:03]} 9. Bd2 {[%emt 0:00:03]} Be7 {[%emt 0:00:03]} 10. Nxg6 {[%emt 0:00:03]} hxg6 {[%emt 0:00:02]} 11. O-O-O {[%emt 0:00:09]} dxc4 {[%emt 0:01:43]} 12. Bxc4 {[%emt 0:00:03]} b5 {[%emt 0:00:02]} 13. Bd3 {[%emt 0:00:41]} a6 {[%emt 0:00:15]} 14. h3 {[%emt 0:00:21]} Nbd7 {[%emt 0:00:14]} 15. Ne4 {[%emt 0:00:28]} c5 {[%emt 0:00:46]} 16. Nxf6+ {[%emt 0:01:27]} Bxf6 {[%emt 0:00:55]} 17. Kb1 {[%emt 0:00:44]} O-O {[%emt 0:01:25]} 18. Be4 {[%emt 0:01:42]} Rac8 {[%emt 0:00:15]} 19. h4 {[%emt 0:01:00]} cxd4 {[%emt 0:01:11]} 20. exd4 {[%emt 0:01:05]} Bxd4 {[%emt 0:00:35]} 21. h5 {[%emt 0:00:09]} Nc5 {[%emt 0:00:13]} 22. Qc2 {[%emt 0:00:01]} f5 {[%emt 0:01:02]} 23. Bb4 {[%emt 0:00:42]} Rfd8 {[%emt 0:00:40]} 24. Bd3 {[%emt 0:02:13]} gxh5 {[%emt 0:00:37]} 25. Bxc5 {[%emt 0:00:09]} Qxc5 {[%emt 0:00:18]} 26. Qe2 {[%emt 0:00:07]} Qe5 {[%emt 0:00:22]} 27. Rxh5 {[%emt 0:00:10]} Qxe2 {[%emt 0:00:19]} 28. Bxe2 {[%emt 0:00:02]} Kf7 {[%emt 0:00:10]} 29. g4 {[%emt 0:00:09]} g6 {[%emt 0:00:25]} 30. Rh7+ {[%emt 0:00:05]} Bg7 {[%emt 0:00:02]} 31. gxf5 {[%emt 0:00:06]} exf5 {[%emt 0:00:13]} 32. Rhh1 {[%emt 0:00:02]} Be5 {[%emt 0:00:06]} 33. Bd3 {[%emt 0:00:01]} Kf6 {[%emt 0:00:02]} 34. Bc2 {[%emt 0:00:06]} Rh8 {[%emt 0:00:10]} 35. a4 {[%emt 0:00:12]} bxa4 {[%emt 0:00:21]} 36. Bxa4 {[%emt 0:00:03]} Rb8 {[%emt 0:00:05]} 37. b3 {[%emt 0:00:02]} Rxh1 {[%emt 0:00:05]} 38. Rxh1 {[%emt 0:00:01]} Rd8 {[%emt 0:00:00]} 39. Kc2 {[%emt 0:00:02]} Rc8+ {[%emt 0:00:03]} 40. Kd2 {[%emt 0:00:01]} Bf4+ {[%emt 0:00:11]} 41. Kd3 {[%emt 0:00:08]} Rd8+ {[%emt 0:00:02]} 42. Ke2 {[%emt 0:00:02]} Rd2+ {[%emt 0:00:01]} 43. Ke1 {[%emt 0:00:04]} Rc2 {[%emt 0:00:08]} 44. Rh8 {[%emt 0:00:03]} Kg5 {[%emt 0:00:14]} 45. Ra8 {[%emt 0:00:08]} Kh4 {[%emt 0:00:03]} 46. Rxa6 {[%emt 0:00:04]} g5 {[%emt 0:00:01]} 47. Rc6 {[%emt 0:00:04]} Rb2 {[%emt 0:00:03]} 48. Rc5 {[%emt 0:00:11]} Kg3 {[%emt 0:00:02]} 49. Rxf5 {[%emt 0:00:04]} Kxf3 {[%emt 0:00:01]} 50. Rc5 {[%emt 0:00:09]} Rb1+ {[%emt 0:00:05]} 0-1

[Event "Polgar Challenge 2021"]
[Site "Online"]
[Date "2021.04.04"]
[Round "8.4"]
[White "Murzin, Volodar"]
[Black "Gukesh D"]
[Result "0-1"]
[ECO "C70"]
[WhiteElo "2478"]
[BlackElo "2578"]
[Annotator "ChessBase"]
[PlyCount "122"]
[EventDate "2021.04.08"]
[EventType "tourn"]
[EventCountry "NET"]
[SourceTitle "playchess.com"]
[Source "ChessBase"]
[SourceQuality "1"]
[TimeControl "600+5"]

1. e4 {[%emt 0:00:00]} e5 {[%emt 0:00:00]} 2. Nf3 {[%emt 0:00:00]} Nc6 {[%emt 0:00:00]} 3. Bb5 {[%emt 0:00:02]} a6 {[%emt 0:00:00]} 4. Ba4 {[%emt 0:00:02]} Bc5 {[%emt 0:00:00]} 5. O-O {[%emt 0:00:05]} Nge7 {[%emt 0:00:05]} 6. Nxe5 {[%emt 0:01:02]} Nxe5 {[%emt 0:00:03]} 7. d4 {[%emt 0:00:03]} b5 {[%emt 0:00:02]} 8. Bb3 {[%emt 0:00:01]} Bxd4 {[%emt 0:00:05]} 9. Qxd4 {[%emt 0:00:03]} d6 {[%emt 0:00:02]} 10. Qe3 {[%emt 0:00:25]} c5 {[%emt 0:01:15]} 11. c3 {[%emt 0:00:15]} Be6 {[%emt 0:01:11]} 12. Bc2 {[%emt 0:00:17]} O-O {[%emt 0:00:43]} 13. Nd2 {[%emt 0:01:21]} f5 {[%emt 0:00:23]} 14. f4 {[%emt 0:00:16]} N5g6 {[%emt 0:01:36]} 15. Nf3 {[%emt 0:00:24]} fxe4 {[%emt 0:00:55]} 16. Bxe4 {[%emt 0:00:05]} Nd5 {[%emt 0:00:14]} 17. Qe1 {[%emt 0:00:44]} Ngxf4 {[%emt 0:01:46]} 18. Bxf4 {[%emt 0:02:05]} Nxf4 {[%emt 0:00:01]} 19. Bxa8 {[%emt 0:00:06]} Qxa8 {[%emt 0:00:05]} 20. Qd2 {[%emt 0:00:51]} Bc4 {[%emt 0:01:18]} 21. Qxd6 {[%emt 0:00:37]} Rf6 {[%emt 0:00:45]} 22. Qd2 {[%emt 0:00:18]} Bxf1 {[%emt 0:00:25]} 23. Rxf1 {[%emt 0:00:03]} Qf8 {[%emt 0:00:05]} 24. Kh1 {[%emt 0:01:13]} c4 {[%emt 0:00:15]} 25. b3 {[%emt 0:00:26]} Nd3 {[%emt 0:00:11]} 26. bxc4 {[%emt 0:00:07]} bxc4 {[%emt 0:00:02]} 27. Qe3 {[%emt 0:00:09]} h6 {[%emt 0:00:12]} 28. h3 {[%emt 0:00:24]} Qf7 {[%emt 0:00:09]} 29. Qd4 {[%emt 0:00:27]} Rf4 {[%emt 0:00:11]} 30. Qd6 {[%emt 0:00:11]} Rf6 {[%emt 0:00:08]} 31. Qd4 {[%emt 0:00:02]} Qe6 {[%emt 0:00:04]} 32. Qd8+ {[%emt 0:00:26]} Kh7 {[%emt 0:00:04]} 33. Qd4 {[%emt 0:00:03]} Qe2 {[%emt 0:00:03]} 34. Kg1 {[%emt 0:00:07]} Rf4 {[%emt 0:00:17]} 35. Qd5 {[%emt 0:00:06]} Qe3+ {[%emt 0:00:02]} 36. Kh2 {[%emt 0:00:03]} Ne5 {[%emt 0:00:08]} 37. Qb7 {[%emt 0:00:06]} Qxc3 {[%emt 0:00:05]} 38. Nxe5 {[%emt 0:00:07]} Qxe5 {[%emt 0:00:09]} 39. Rxf4 {[%emt 0:00:01]} Qxf4+ {[%emt 0:00:01]} 40. Kh1 {[%emt 0:00:01]} Qc1+ {[%emt 0:00:01]} 41. Kh2 {[%emt 0:00:02]} Qf4+ {[%emt 0:00:02]} 42. Kh1 {[%emt 0:00:01]} c3 {[%emt 0:00:10]} 43. Qc6 {[%emt 0:00:05]} Qc1+ {[%emt 0:00:06]} 44. Kh2 {[%emt 0:00:01]} Qf4+ {[%emt 0:00:01]} 45. Kh1 {[%emt 0:00:01]} Qe5 {[%emt 0:00:03]} 46. Qc4 {[%emt 0:00:08]} Qe1+ {[%emt 0:00:06]} 47. Kh2 {[%emt 0:00:01]} Qe5+ {[%emt 0:00:01]} 48. Kh1 {[%emt 0:00:01]} a5 {[%emt 0:00:12]} 49. Qd3+ {[%emt 0:00:13]} Kg8 {[%emt 0:00:01]} 50. Qd8+ {[%emt 0:00:04]} Kf7 {[%emt 0:00:02]} 51. Qd7+ {[%emt 0:00:01]} Kf6 {[%emt 0:00:00]} 52. Qc6+ {[%emt 0:00:04]} Kg5 {[%emt 0:00:03]} 53. Qc4 {[%emt 0:00:02]} Qe1+ {[%emt 0:00:03]} 54. Kh2 {[%emt 0:00:01]} Qe5+ {[%emt 0:00:01]} 55. Kh1 {[%emt 0:00:01]} h5 {[%emt 0:00:01]} 56. a4 {[%emt 0:00:04]} g6 {[%emt 0:00:16]} 57. Qc6 {[%emt 0:00:33]} Qe1+ {[%emt 0:00:04]} 58. Kh2 {[%emt 0:00:01]} Qe5+ {[%emt 0:00:00]} 59. Kh1 {[%emt 0:00:02]} Qe3 {[%emt 0:00:15]} 60. Qc7 {[%emt 0:00:21]} Qc1+ {[%emt 0:00:03]} 61. Kh2 {[%emt 0:00:04]} Qf4+ {[%emt 0:00:00]} 0-1

[Event "Polgar Challenge 2021"]
[Site "Online"]
[Date "2021.04.04"]
[Round "8.5"]
[White "Mammadzada, Gunay"]
[Black "Bjerre, Jonas Buhl"]
[Result "1/2-1/2"]
[ECO "B90"]
[WhiteElo "2443"]
[BlackElo "2550"]
[Annotator "ChessBase"]
[PlyCount "199"]
[EventDate "2021.04.08"]
[EventType "tourn"]
[EventCountry "NET"]
[SourceTitle "playchess.com"]
[Source "ChessBase"]
[SourceQuality "1"]
[TimeControl "600+5"]

1. e4 {[%emt 0:00:00]} c5 {[%emt 0:00:00]} 2. Nf3 {[%emt 0:00:00]} d6 {[%emt 0:00:00]} 3. d4 {[%emt 0:00:00]} cxd4 {[%emt 0:00:00]} 4. Nxd4 {[%emt 0:00:00]} Nf6 {[%emt 0:00:00]} 5. Nc3 {[%emt 0:00:00]} a6 {[%emt 0:00:00]} 6. Be3 {[%emt 0:00:00]} e5 {[%emt 0:00:01]} 7. Nb3 {[%emt 0:00:02]} Be7 {[%emt 0:00:01]} 8. Qd2 {[%emt 0:00:07]} Ng4 {[%emt 0:00:02]} 9. g3 {[%emt 0:00:05]} Be6 {[%emt 0:00:16]} 10. O-O-O {[%emt 0:00:06]} Nxe3 {[%emt 0:00:06]} 11. Qxe3 {[%emt 0:00:08]} Nd7 {[%emt 0:00:03]} 12. f4 {[%emt 0:00:11]} b5 {[%emt 0:00:08]} 13. Kb1 {[%emt 0:02:20]} Qb6 {[%emt 0:00:03]} 14. Qxb6 {[%emt 0:00:49]} Nxb6 {[%emt 0:00:04]} 15. Na5 {[%emt 0:00:01]} Rc8 {[%emt 0:02:08]} 16. Nb7 {[%emt 0:01:12]} Rc6 {[%emt 0:02:34]} 17. Nxb5 {[%emt 0:00:29]} O-O {[%emt 0:01:08]} 18. N5xd6 {[%emt 0:01:50]} Na4 {[%emt 0:00:09]} 19. f5 {[%emt 0:01:56]} Rb6 {[%emt 0:00:37]} 20. Ka1 {[%emt 0:00:11]} Bc8 {[%emt 0:01:24]} 21. Nxc8 {[%emt 0:01:42]} Rxc8 {[%emt 0:00:02]} 22. Rd7 {[%emt 0:00:25]} Kf8 {[%emt 0:02:14]} 23. b3 {[%emt 0:00:16]} Ke8 {[%emt 0:00:33]} 24. Rxe7+ {[%emt 0:00:01]} Kxe7 {[%emt 0:00:03]} 25. Na5 {[%emt 0:00:00]} Nc3 {[%emt 0:00:12]} 26. Bd3 {[%emt 0:00:05]} Nb5 {[%emt 0:00:04]} 27. Nc4 {[%emt 0:00:02]} Rh6 {[%emt 0:00:06]} 28. Nxe5 {[%emt 0:00:04]} Nd4 {[%emt 0:00:01]} 29. Kb2 {[%emt 0:00:09]} a5 {[%emt 0:00:01]} 30. c3 {[%emt 0:00:05]} Nc6 {[%emt 0:00:03]} 31. Nf3 {[%emt 0:00:05]} Rd6 {[%emt 0:00:03]} 32. Bc4 {[%emt 0:00:03]} f6 {[%emt 0:00:04]} 33. Bd5 {[%emt 0:00:05]} Na7 {[%emt 0:00:08]} 34. c4 {[%emt 0:00:03]} Nc6 {[%emt 0:00:01]} 35. a3 {[%emt 0:00:01]} Rb8 {[%emt 0:00:02]} 36. Kc3 {[%emt 0:00:05]} Nd8 {[%emt 0:00:02]} 37. b4 {[%emt 0:00:02]} axb4+ {[%emt 0:00:03]} 38. axb4 {[%emt 0:00:00]} Ra6 {[%emt 0:00:00]} 39. Nd4 {[%emt 0:00:21]} Ra3+ {[%emt 0:00:07]} 40. Nb3 {[%emt 0:00:01]} Nb7 {[%emt 0:00:05]} 41. Kb2 {[%emt 0:00:04]} Ra4 {[%emt 0:00:02]} 42. Kc3 {[%emt 0:00:16]} Nd6 {[%emt 0:00:06]} 43. b5 {[%emt 0:00:01]} Rc8 {[%emt 0:00:02]} 44. Nd2 {[%emt 0:00:06]} Ra2 {[%emt 0:00:09]} 45. Rd1 {[%emt 0:00:07]} Ra3+ {[%emt 0:00:23]} 46. Kb4 {[%emt 0:00:02]} Rd3 {[%emt 0:00:02]} 47. b6 {[%emt 0:00:09]} Rd4 {[%emt 0:00:11]} 48. Ka5 {[%emt 0:00:06]} Rc5+ {[%emt 0:00:16]} 49. Kb4 {[%emt 0:00:04]} Rc8 {[%emt 0:00:01]} 50. Kc3 {[%emt 0:00:06]} Nb5+ {[%emt 0:00:02]} 51. Kb3 {[%emt 0:00:01]} Nd6 {[%emt 0:00:01]} 52. Kc2 {[%emt 0:00:06]} Nxc4 {[%emt 0:00:15]} 53. Nxc4 {[%emt 0:00:04]} Rcxc4+ {[%emt 0:00:00]} 54. Bxc4 {[%emt 0:00:01]} Rxc4+ {[%emt 0:00:00]} 55. Kd3 {[%emt 0:00:09]} Rb4 {[%emt 0:00:02]} 56. Ra1 {[%emt 0:00:01]} Rxb6 {[%emt 0:00:03]} 57. Ra7+ {[%emt 0:00:07]} Kf8 {[%emt 0:00:01]} 58. Ke3 {[%emt 0:00:04]} Rb2 {[%emt 0:00:05]} 59. h4 {[%emt 0:00:02]} Rb3+ {[%emt 0:00:05]} 60. Kf4 {[%emt 0:00:02]} Rb4 {[%emt 0:00:02]} 61. g4 {[%emt 0:00:01]} h6 {[%emt 0:00:02]} 62. Rc7 {[%emt 0:00:05]} Ra4 {[%emt 0:00:03]} 63. Rc6 {[%emt 0:00:14]} Kf7 {[%emt 0:00:04]} 64. Rc7+ {[%emt 0:00:10]} Kf8 {[%emt 0:00:02]} 65. Rc3 {[%emt 0:00:06]} Kf7 {[%emt 0:00:03]} 66. Re3 {[%emt 0:00:01]} Ra1 {[%emt 0:00:06]} 67. g5 {[%emt 0:00:09]} hxg5+ {[%emt 0:00:19]} 68. hxg5 {[%emt 0:00:01]} Rf1+ {[%emt 0:00:04]} 69. Rf3 {[%emt 0:00:02]} fxg5+ {[%emt 0:00:06]} 70. Kg3 {[%emt 0:00:06]} Re1 {[%emt 0:00:06]} 71. Kg4 {[%emt 0:00:11]} Kf6 {[%emt 0:00:02]} 72. Rf2 {[%emt 0:00:06]} Rxe4+ {[%emt 0:00:01]} 73. Kg3 {[%emt 0:00:00]} Ke5 {[%emt 0:00:12]} 74. Rf1 {[%emt 0:00:06]} Rf4 {[%emt 0:00:05]} 75. Re1+ {[%emt 0:00:04]} Kxf5 {[%emt 0:00:03]} 76. Re7 {[%emt 0:00:00]} Kg6 {[%emt 0:00:03]} 77. Re6+ {[%emt 0:00:02]} Rf6 {[%emt 0:00:07]} 78. Re7 {[%emt 0:00:02]} Rf7 {[%emt 0:00:04]} 79. Re6+ {[%emt 0:00:01]} Kf5 {[%emt 0:00:03]} 80. Rb6 {[%emt 0:00:03]} Re7 {[%emt 0:00:02]} 81. Rb5+ {[%emt 0:00:01]} Re5 {[%emt 0:00:01]} 82. Rb7 {[%emt 0:00:02]} Kg6 {[%emt 0:00:30]} 83. Rb6+ {[%emt 0:00:01]} Kh5 {[%emt 0:00:04]} 84. Rb7 {[%emt 0:00:04]} Kh6 {[%emt 0:00:12]} 85. Rb6+ {[%emt 0:00:02]} g6 {[%emt 0:00:02]} 86. Rb8 {[%emt 0:00:02]} Re3+ {[%emt 0:00:01]} 87. Kg4 {[%emt 0:00:01]} Re4+ {[%emt 0:00:01]} 88. Kg3 {[%emt 0:00:00]} g4 {[%emt 0:00:05]} 89. Rb5 {[%emt 0:00:04]} Ra4 {[%emt 0:00:06]} 90. Rc5 {[%emt 0:00:02]} Rb4 {[%emt 0:00:03]} 91. Ra5 {[%emt 0:00:02]} g5 {[%emt 0:00:03]} 92. Ra8 {[%emt 0:00:04]} Rf4 {[%emt 0:00:08]} 93. Rb8 {[%emt 0:00:06]} Kh5 {[%emt 0:00:02]} 94. Rh8+ {[%emt 0:00:02]} Kg6 {[%emt 0:00:01]} 95. Rg8+ {[%emt 0:00:11]} Kf5 {[%emt 0:00:04]} 96. Rf8+ {[%emt 0:00:02]} Ke4 {[%emt 0:00:03]} 97. Re8+ {[%emt 0:00:01]} Kf5 {[%emt 0:00:08]} 98. Rf8+ {[%emt 0:00:01]} Ke4 {[%emt 0:00:06]} 99. Re8+ {[%emt 0:00:01]} Kf5 {[%emt 0:00:03]} 100. Rf8+ {[%emt 0:00:01]} 1/2-1/2